fUSD/lending_fUSD_20240121
["ID","MTS","AMOUNT","RATE_DAILY","PERIOD"]
[312372609,1705840256025,-300.0,0.0003624,2]
[312372610,1705840256035,-150.0,0.00036245,2]
[312372611,1705840256044,-151.0,0.00036257,7]
[312372612,1705840256053,-150.0,0.00036257,7]
[312372613,1705840256065,-160.0,0.00036257,7]
[312372614,1705840256075,-150.0,0.0003627,2]
[312372615,1705840256085,-400.0,0.0003627,2]
[312372616,1705840256095,-150.0,0.000363,8]
[312372617,1705840256105,-500.41984,0.000363,2]
[312372618,1705840256114,-153.93,0.00036301,2]
[312372619,1705840256124,-200.0,0.00036302,2]
[312372620,1705840256133,-4885.8840173,0.00036302,5]
[312372621,1705840256142,-838.20304582,0.00036302,2]
[312372622,1705840256151,-5840.82062477,0.00036302,4]
[312372623,1705840256160,-500.0,0.00036302,2]
[312372624,1705840256169,-500.0,0.00036302,2]
[312372625,1705840256178,-500.0,0.00036302,2]
[312372626,1705840256187,-500.0,0.00036302,2]
[312372627,1705840256196,-500.0,0.00036302,2]
[312372628,1705840256205,-500.0,0.00036302,2]
[312372629,1705840256215,-500.0,0.00036302,2]
[312372630,1705840256226,-500.0,0.00036302,2]
[312372631,1705840256236,-500.0,0.00036302,2]
[312372632,1705840256246,-30094.55860387,0.00036316,10]
[312372633,1705840256257,-299.35527868,0.00036316,2]
[312372634,1705840256268,-162.257256,0.00036316,2]
[312372635,1705840256277,-20059.20581909,0.00036316,7]
[312372636,1705840256287,-706.235,0.00036316,7]
[312372637,1705840256296,-174.3758174,0.00036316,6]
[312372638,1705840256306,-1717.73543321,0.00036316,3]
[312372639,1705840256316,-43411.0,0.00036316,4]
[312372640,1705840256325,-1224.94629074,0.00036316,2]
[312372641,1705840256334,-1000.0,0.00036316,15]
[312372642,1705840256344,-1000.0,0.00036316,15]
[312372643,1705840256354,-1000.0,0.00036316,15]
[312372644,1705840256474,-1000.0,0.00036316,15]
[312372645,1705840256484,-1000.0,0.00036316,15]
[312372646,1705840256494,-1000.0,0.00036316,15]
[312372647,1705840256503,-1000.0,0.00036316,15]
[312372648,1705840256512,-1000.0,0.00036316,15]
[312372649,1705840256521,-1000.0,0.00036316,15]
[312372650,1705840256529,-1000.0,0.00036316,15]
[312372651,1705840256539,-1000.0,0.00036316,15]
[312372652,1705840256548,-1000.0,0.00036316,15]
[312372653,1705840256557,-1000.0,0.00036316,15]
[312372654,1705840256566,-1000.0,0.00036316,15]
[312372655,1705840256575,-1000.0,0.00036316,15]
[312372656,1705840256585,-1593.95757,0.00036316,15]
[312372657,1705840256594,-154.86,0.00036438,2]
[312372658,1705840256603,-15000.0,0.00036463,7]
[312372659,1705840256612,-200.0,0.00036476,2]
[312372660,1705840256621,-150.0,0.00036482,2]
[312372661,1705840256630,-151.0121,0.00036498,6]
[312372662,1705840256639,-151.0,0.00036578,7]
[312372663,1705840256648,-160.0,0.00036578,7]
[312372664,1705840256657,-8208.4467635,0.000366,3]
[312372665,1705840256666,-402.91,0.00036613,15]
[312372666,1705840256676,-152.13195504,0.00036664,2]
[312372667,1705840256685,-152.0,0.00036673,4]
[312372668,1705840256694,-384.99651508,0.00036696,4]
[312372669,1705840256704,-532.5163169,0.00036696,4]
[312372670,1705840256713,-6827.04698157,0.00036697,4]
[312372671,1705840256723,-34739.31755514,0.00036698,15]
[312372672,1705840256733,-344.0,0.000367,2]
[312372673,1705840256742,-1000.0,0.000367,2]
[312372674,1705840256751,-218.98211422,0.00036791,3]
[312372675,1705840256760,-151.0121,0.00036798,6]
[312372676,1705840256770,-200.0,0.00036841,2]
[312372677,1705840256779,-151.0,0.00036898,7]
[312372678,1705840256788,-160.0,0.00036898,7]
[312372679,1705840256798,-1803.64,0.00036986,2]
[312372680,1705840256807,-667.48986672,0.00036986,2]
[312372681,1705840256816,-153.93,0.00036986,2]
[312372682,1705840256825,-200.0,0.00036987,18]
[312372683,1705840256835,-100000.0,0.00037,7]
[312372684,1705840256844,-700.0,0.00037,2]
[312372685,1705840256853,-300.0,0.00037,9]
[312372686,1705840256862,-20000.0,0.00037,7]
[312372687,1705840256872,-319.0,0.00037,2]
[312372688,1705840256883,-150.0,0.00037,30]
[312372689,1705840256893,-2027.18027512,0.00037,10]
[312372690,1705840256902,-1000.0,0.00037,2]
[312372691,1705840256911,-650.0,0.00037,3]
[312372692,1705840256921,-2477.50349353,0.00037,15]
[312372693,1705840256931,-2036.01371372,0.00037,15]
[312372694,1705840256940,-1074.18755977,0.00037,15]
[312372695,1705840256949,-818.8269883,0.00037,15]
[312372696,1705840256959,-1024.55636188,0.0003711,2]
[312372697,1705840256971,-151.0121,0.00037198,6]
[312372698,1705840256980,-269.72,0.000372,7]
[312372699,1705840256990,-1326.54,0.000372,7]
[312372700,1705840256999,-544.3,0.000372,7]
[312372701,1705840257008,-150.0,0.000372,30]
[312372702,1705840257017,-200.0,0.00037209,2]
[312372703,1705840257027,-151.0,0.00037219,7]
[312372704,1705840257037,-160.0,0.00037219,7]
[312372705,1705840257047,-150.0,0.00037275,2]
[312372706,1705840257057,-150.0,0.000373,9]
[312372707,1705840257067,-500.0,0.00037397,7]
[312372708,1705840257077,-150.0,0.000374,30]
[312372709,1705840257086,-153.0121,0.00037498,6]
[312372710,1705840257095,-152.43,0.000375,2]
[312372711,1705840257106,-2626.02039562,0.000375,4]
[312372712,1705840257116,-25866.80014766,0.000375,20]
[312372713,1705840257127,-151.0,0.00037539,7]
[312372714,1705840257137,-160.0,0.00037539,7]
[312372715,1705840257146,-200.0,0.00037581,2]
[312372716,1705840257156,-150.0,0.000376,30]
[312372717,1705840257165,-150.0,0.000376,4]
[312372718,1705840257175,-231.9,0.00037661,2]
[312372719,1705840257184,-153.93,0.00037671,2]
[312372720,1705840257193,-150.0,0.000378,30]
[312372721,1705840257203,-15599.38,0.00037808,2]
[312372722,1705840257212,-205.0,0.0003785,2]
[312372723,1705840257221,-205.0,0.0003785,2]
[312372724,1705840257231,-151.0,0.0003786,7]
[312372725,1705840257245,-160.0,0.0003786,7]
[312372726,1705840257266,-4575.0,0.0003789,3]
[312372727,1705840257283,-179.64,0.000379,2]
[312372728,1705840257302,-669189.865888,0.000379,3]
[312372729,1705840257320,-209.96091621,0.00037979,4]
[312372730,1705840257335,-200.0,0.00037987,21]
[312372731,1705840257351,-100000.0,0.00038,8]
[312372732,1705840257368,-150.0,0.00038,30]
[312372733,1705840257386,-288.34670398,0.00038,4]
[312372734,1705840257403,-300.0,0.00038,10]
[312372735,1705840257420,-371.44387535,0.00038,4]
[312372736,1705840257438,-20000.0,0.00038,8]
[312372737,1705840257458,-727.68286176,0.00038,30]
[312372738,1705840257470,-319.0,0.00038,2]
[312372739,1705840257485,-506.66,0.00038,3]
[312372740,1705840257502,-506.66,0.00038,3]
[312372741,1705840257515,-506.66,0.00038,3]
[312372742,1705840257530,-506.66,0.00038,3]
[312372743,1705840257545,-506.66,0.00038,3]
[312372744,1705840257560,-506.66,0.00038,3]
[312372745,1705840257575,-506.66,0.00038,3]
[312372746,1705840257591,-506.66,0.00038,3]
[312372747,1705840257605,-506.66,0.00038,3]
[312372748,1705840257620,-506.66,0.00038,3]
[312372749,1705840257635,-506.66,0.00038,3]
[312372750,1705840257649,-506.66,0.00038,3]
[312372751,1705840257665,-506.66,0.00038,3]
[312372752,1705840257680,-506.66,0.00038,3]
[312372753,1705840257696,-506.66,0.00038,3]
[312372754,1705840257710,-506.66,0.00038,3]
[312372755,1705840257726,-506.66,0.00038,3]
[312372756,1705840257741,-506.66,0.00038,3]
[312372757,1705840257755,-506.66,0.00038,3]
[312372758,1705840257769,-506.66,0.00038,3]
[312372759,1705840257783,-2477.0,0.00038,15]
[312372760,1705840257801,-2036.0,0.00038,15]
[312372761,1705840257816,-1074.0,0.00038,15]
[312372762,1705840257838,-817.0,0.00038,15]
[312372763,1705840257854,-846.88236242,0.00038,15]
[312372764,1705840257868,-172.0,0.00038059,2]
[312372765,1705840257882,-150.0,0.00038068,2]
[312372766,1705840257900,-151.0,0.0003818,7]
[312372767,1705840257914,-160.0,0.0003818,7]
[312372768,1705840257929,-150.0,0.000382,30]
[312372769,1705840257943,-269.72,0.000382,7]
[312372770,1705840257957,-1326.54,0.000382,7]
[312372771,1705840257973,-544.3,0.000382,7]
[312372772,1705840257987,-1000.0,0.00038297,10]
[312372773,1705840258002,-1000.0,0.00038297,10]
[312372774,1705840258017,-1000.0,0.00038297,10]
[312372775,1705840258031,-150.0,0.000383,10]
[312372776,1705840258053,-29464.85871278,0.0003833,10]
[312372777,1705840258068,-152.0,0.0003834,5]
[312372778,1705840258083,-1803.64,0.00038356,2]
[312372779,1705840258097,-153.93,0.00038356,2]
[312372780,1705840258113,-150.0,0.000384,30]
[312372781,1705840258129,-274.16326032,0.000385,2]
[312372782,1705840258144,-421.98683897,0.000385,2]
[312372783,1705840258158,-151.0,0.00038501,7]
[312372784,1705840258174,-160.0,0.00038501,7]
[312372785,1705840258188,-150.0,0.000386,30]
[312372786,1705840258203,-152.43,0.000386,2]
[312372787,1705840258217,-736.065353,0.000386,5]
[312372788,1705840258232,-500.0,0.0003863,7]
[312372789,1705840258248,-1024.55636188,0.00038688,2]
[312372790,1705840258262,-207.0,0.00038696,27]
[312372791,1705840258276,-150.0,0.000388,30]
[312372792,1705840258290,-26612.58707247,0.000388,4]
[312372793,1705840258304,-150.0,0.00038861,2]
[312372794,1705840258317,-162.98835931,0.0003888,2]
[312372795,1705840258330,-113846.89836588,0.000389,20]
[312372796,1705840258344,-266795.73457238,0.0003897,2]
[312372797,1705840258360,-402.80401399,0.0003898,2]
[312372798,1705840258375,-200.0,0.00038987,24]
[312372799,1705840258387,-100000.0,0.00039,9]
[312372800,1705840258396,-150.0,0.00039,30]
[312372801,1705840258405,-1428.56752818,0.00039,2]
[312372802,1705840258414,-975.72594921,0.00039,4]
[312372803,1705840258424,-197.01513932,0.00039,4]
[312372804,1705840258433,-269.72,0.00039,7]
[312372805,1705840258442,-1326.54,0.00039,7]
[312372806,1705840258660,-544.3,0.00039,7]
[312372807,1705840258690,-300.0,0.00039,3]
[312372808,1705840258708,-300.0,0.00039,11]
[312372809,1705840258718,-1752460.83046943,0.00039,2]
[312372810,1705840258727,-20000.0,0.00039,9]
[312372811,1705840258736,-1003.11998091,0.00039,4]
[312372812,1705840258746,-319.0,0.00039,2]
[312372813,1705840258756,-443.80837652,0.00039,30]
[312372814,1705840258765,-50027.0484,0.00039,2]
[312372815,1705840258775,-306.11,0.00039,14]
[312372816,1705840258785,-391.58586683,0.00039,7]
[312372817,1705840258795,-4052.059601,0.00039,24]
[312372818,1705840258804,-700.0,0.00039,3]
[312372819,1705840258814,-250.0,0.00039,2]
[312372820,1705840258823,-151.36,0.00039,2]
[312372821,1705840258832,-151.36,0.00039,2]
[312372822,1705840258841,-151.36,0.00039,2]
[312372823,1705840258851,-151.36,0.00039,2]
[312372824,1705840258860,-151.36,0.00039,2]
[312372825,1705840258870,-151.36,0.00039,2]
[312372826,1705840258879,-151.36,0.00039,2]
[312372827,1705840258894,-151.36,0.00039,2]
[312372828,1705840258904,-151.36,0.00039,2]
[312372829,1705840258913,-151.36,0.00039,2]
[312372830,1705840258922,-151.36,0.00039,2]
[312372831,1705840258933,-151.36,0.00039,2]
[312372832,1705840258942,-151.36,0.00039,2]
[312372833,1705840258952,-151.36,0.00039,2]
[312372834,1705840258961,-151.36,0.00039,2]
[312372835,1705840258972,-151.36,0.00039,2]
[312372836,1705840258982,-151.36,0.00039,2]
[312372837,1705840258991,-151.36,0.00039,2]
[312372838,1705840259000,-151.36,0.00039,2]
[312372839,1705840259009,-151.36,0.00039,2]
[312372840,1705840259019,-151.36,0.00039,2]
[312372841,1705840259028,-151.36,0.00039,2]
[312372842,1705840259037,-151.36,0.00039,2]
[312372843,1705840259046,-151.36,0.00039,2]
[312372844,1705840259055,-151.36,0.00039,2]
[312372845,1705840259064,-151.36,0.00039,2]
[312372846,1705840259073,-151.36,0.00039,2]
[312372847,1705840259082,-151.36,0.00039,2]
[312372848,1705840259092,-151.36,0.00039,2]
[312372849,1705840259101,-151.36,0.00039,2]
[312372850,1705840259110,-151.36,0.00039,2]
[312372851,1705840259119,-151.36,0.00039,2]
[312372852,1705840259128,-151.36,0.00039,2]
[312372853,1705840259137,-151.36,0.00039,2]
[312372854,1705840259146,-151.36,0.00039,2]
[312372855,1705840259155,-151.36,0.00039,2]
[312372856,1705840259164,-151.36,0.00039,2]
[312372857,1705840259174,-151.36,0.00039,2]
[312372858,1705840259183,-151.36,0.00039,2]
[312372859,1705840259192,-151.36,0.00039,2]
[312372860,1705840259201,-151.36,0.00039,2]
[312372861,1705840259211,-151.36,0.00039,2]
[312372862,1705840259220,-151.36,0.00039,2]
[312372863,1705840259229,-151.36,0.00039,2]
[312372864,1705840259238,-151.36,0.00039,2]
[312372865,1705840259248,-151.36,0.00039,2]
[312372866,1705840259257,-151.36,0.00039,2]
[312372867,1705840259266,-151.36,0.00039,2]
[312372868,1705840259275,-151.36,0.00039,2]
[312372869,1705840259285,-151.36,0.00039,2]
[312372870,1705840259295,-151.36,0.00039,2]
[312372871,1705840259304,-151.36,0.00039,2]
[312372872,1705840259314,-151.36,0.00039,2]
[312372873,1705840259325,-151.36,0.00039,2]
[312372874,1705840259334,-151.36,0.00039,2]
[312372875,1705840259343,-151.36,0.00039,2]
[312372876,1705840259353,-151.36,0.00039,2]
[312372877,1705840259362,-151.36,0.00039,2]
[312372878,1705840259372,-151.36,0.00039,2]
[312372879,1705840259381,-151.36,0.00039,2]
[312372880,1705840259390,-151.36,0.00039,2]
[312372881,1705840259400,-151.36,0.00039,2]
[312372882,1705840259410,-151.36,0.00039,2]
[312372883,1705840259420,-151.36,0.00039,2]
[312372884,1705840259430,-150.0,0.0003904,4]
[312372885,1705840259439,-153.93,0.00039041,2]
[312372886,1705840259448,-18331.32088977,0.000391,2]
[312372887,1705840259457,-155.98566765,0.00039175,3]
[312372888,1705840259467,-150.0,0.000392,30]
[312372889,1705840259477,-205.0,0.0003926,2]
[312372890,1705840259486,-205.0,0.0003926,2]
[312372891,1705840259495,-1000.0,0.0003926,2]
[312372892,1705840259505,-150.0,0.000393,11]
[312372893,1705840259514,-500.0,0.00039316,30]
[312372894,1705840259524,-150.0,0.000394,30]
[312372895,1705840259533,-489.8044188,0.000395,4]
[312372896,1705840259543,-152.43,0.000395,2]
[312372897,1705840259552,-300.0,0.000395,4]
[312372898,1705840259562,-150.0,0.000396,30]
[312372899,1705840259572,-150.0,0.00039654,2]
[312372900,1705840259581,-1000.0,0.000397,2]
[312372901,1705840259590,-1000.0,0.00039708,10]
[312372902,1705840259599,-1000.0,0.00039708,10]
[312372903,1705840259610,-1000.0,0.00039708,10]
[312372904,1705840259619,-1803.64,0.00039726,2]
[312372905,1705840259628,-153.93,0.00039726,2]
[312372906,1705840259638,-1354.41737,0.00039733,30]
[312372907,1705840259647,-25202.0,0.00039745,5]
[312372908,1705840259656,-10450.91333805,0.0003978,12]
[312372909,1705840259665,-150.0,0.000398,30]
[312372910,1705840259675,-1000.0,0.000398,30]
[312372911,1705840259684,-500.0,0.00039863,7]
[312372912,1705840259694,-91354.03432901,0.00039865,2]
[312372913,1705840259705,-350.09036543,0.000399,4]
[312372914,1705840259714,-100030.14448329,0.000399,2]
[312372915,1705840259724,-269.72,0.000399,7]
[312372916,1705840259734,-1326.54,0.000399,7]
[312372917,1705840259744,-544.3,0.000399,7]
[312372918,1705840259754,-58887.93264796,0.000399,5]
[312372919,1705840259764,-231.9,0.00039925,2]
[312372920,1705840259774,-571.20350457,0.0003998,3]
[312372921,1705840259783,-200.0,0.00039987,27]
[312372922,1705840259792,-900.96553459,0.0003999,2]
[312372923,1705840259801,-6267.0,0.0003999,3]
[312372924,1705840259811,-100000.0,0.0004,10]
[312372925,1705840259821,-150.0,0.0004,30]
[312372926,1705840259832,-1000.0,0.0004,2]
[312372927,1705840259841,-1082.45140834,0.0004,10]
[312372928,1705840259850,-1084.09238932,0.0004,4]
[312372929,1705840259859,-301.24687929,0.0004,14]
[312372930,1705840259868,-54264.37078606,0.0004,4]
[312372931,1705840259877,-155.0,0.0004,2]
[312372932,1705840259886,-2678.17508452,0.0004,4]
[312372933,1705840259897,-281.13667237,0.0004,4]
[312372934,1705840259907,-2269.30418644,0.0004,4]
[312372935,1705840259916,-6287.53730915,0.0004,4]
[312372936,1705840259925,-2797.57068721,0.0004,5]
[312372937,1705840259935,-22022.85823354,0.0004,4]
[312372938,1705840259944,-257.66516504,0.0004,4]
[312372939,1705840259954,-7484.40529884,0.0004,2]
[312372940,1705840260265,-22553.62248385,0.0004,2]
[312372941,1705840260274,-3000.0,0.0004,2]
[312372942,1705840260283,-911.0,0.0004,2]
[312372943,1705840260292,-1370.1462916,0.0004,2]
[312372944,1705840260301,-1585.27914759,0.0004,17]
[312372945,1705840260580,-1000.0,0.00027397,10]
[312372946,1705840264594,155.0,0.0002,2]
[312372947,1705840282853,155.0,0.0002,2]
[312372949,1705840302868,155.0,0.0002,2]
[312372950,1705840324859,155.0,0.0002,2]
[312372952,1705840342983,155.0,0.0002,2]
[312372954,1705840358876,155.0,0.0002,2]
[312372956,1705840374872,220.25028001,0.0002,2]
[312372982,1705841186831,283.29178074,0.0002,2]
[312372983,1705841187809,406.81206,0.0002,2]
[312372985,1705841192923,155.42229511,0.00018,2]
[312372986,1705841192981,268.3291844,0.0002,2]
[312372999,1705841338882,276.8500523,0.0002,2]
[312373000,1705841355844,295.74939135,0.0002,2]
[312373026,1705841432271,-164.90047162,0.00021899,2]
[312373027,1705841432281,-516.83340516,0.00021899,2]
[312373028,1705841432290,-250.0,0.000219,2]
[312373029,1705841432300,-435.25521498,0.00022691,2]
[312373030,1705841432313,-68.96123783,0.00022691,2]
[312373031,1705841432322,-1853.57655761,0.00022691,2]
[312373032,1705841432332,-622.40615561,0.00022692,2]
[312373033,1705841432342,-209.44254861,0.00022692,2]
[312373034,1705841432351,-420.16374774,0.00022692,2]
[312373035,1705841432360,-922.33112016,0.00022692,2]
[312373036,1705841432372,-557.45297287,0.00022692,2]
[312373037,1705841432384,-712.39266076,0.00022692,2]
[312373038,1705841432396,-474.43698901,0.00022692,2]
[312373039,1705841432412,-365.14639076,0.00022692,2]
[312373040,1705841432421,-1565.84873781,0.00022692,2]
[312373041,1705841432432,-2147.6167907,0.00022692,2]
[312373042,1705841432451,-638.94084776,0.00022692,2]
[312373043,1705841432460,-867.65374985,0.00022693,2]
[312373044,1705841432469,-165.17419233,0.00022694,2]
[312373045,1705841432478,-521.09835095,0.00022792,2]
[312373046,1705841432487,-178.94563572,0.000228,2]
[312373047,1705841432496,-173.70888881,0.000239,2]
[312373048,1705841432506,-2545.54557301,0.00024,2]
[312373049,1705841432516,-5000.0,0.00024,2]
[312373050,1705841432526,-483.68814411,0.000244,2]
[312373051,1705841432535,-3280.0,0.00024658,2]
[312373052,1705841432546,-3006.0,0.000247,2]
[312373053,1705841432556,-171.29,0.00024966,2]
[312373054,1705841432565,-150.0,0.00024986,2]
[312373055,1705841432574,-534.23818946,0.00025,2]
[312373056,1705841432583,-1461.04527277,0.00025,2]
[312373057,1705841432593,-322.99442589,0.00025,2]
[312373059,1705841432603,-623.86255268,0.00025,2]
[312373061,1705841432612,-200.0,0.00025,2]
[312373062,1705841432622,-457.96849023,0.00025,2]
[312373063,1705841432631,-173.70888881,0.00025502,2]
[312373064,1705841432640,-326.39,0.00025969,2]
[312373065,1705841432650,-853.67,0.0002597,2]
[312373066,1705841432660,-560.76781231,0.00026698,2]
[312373068,1705841432669,-212.06654577,0.00026726,2]
[312373070,1705841432678,-10399.58,0.00026848,2]
[312373072,1705841432687,-500.0,0.0002687,2]
[312373074,1705841432696,-250.0,0.00026915,2]
[312373076,1705841432706,-154.14,0.00027071,2]
[312373078,1705841432715,-154.14,0.00027101,2]
[312373080,1705841432724,-173.70888881,0.00027104,2]
[312373082,1705841432733,-154.14,0.00027131,2]
[312373084,1705841432742,-154.14,0.00027161,2]
[312373085,1705841432751,-290.63,0.00027186,2]
[312373087,1705841432761,-154.14,0.00027191,2]
[312373089,1705841432770,-154.14,0.00027221,2]
[312373091,1705841432779,-65.60897015,0.0002723,2]
[312373093,1705841432792,-105.68102985,0.0002723,2]
[312373094,1705841432801,-154.14,0.00027251,2]
[312373095,1705841432811,-154.14,0.00027281,2]
[312373096,1705841432820,-154.14,0.00027311,2]
[312373097,1705841432830,-154.14,0.00027341,2]
[312373098,1705841432839,-57.03121244,0.00027372,2]
[312373099,1705841432851,-97.10878756,0.00027372,2]
[312373100,1705841432861,-202.89121244,0.00027395,2]
[312373101,1705841432874,-632.3220146,0.00027395,2]
[312373102,1705841432883,-201.81137898,0.00027395,2]
[312373103,1705841432893,-202.73515419,0.00027396,2]
[312373104,1705841432902,-1052.12,0.00027397,2]
[312373105,1705841432913,-154.14,0.00027402,2]
[312373106,1705841432924,-154.14,0.00027432,2]
[312373107,1705841432934,-154.14,0.00027462,2]
[312373108,1705841432945,-112.82603233,0.00027477,2]
[312373109,1705841433436,-400.0,0.00027477,2]
[312373110,1705841433449,-1995.34396767,0.00027477,2]
[312373111,1705841433463,-154.14,0.00027492,2]
[312373112,1705841433506,-173.89,0.00027495,2]
[312373113,1705841433516,-1000.0,0.00027495,2]
[312373114,1705841433525,-853.9,0.00027495,2]
[312373115,1705841433534,-154.14,0.00027522,2]
[312373116,1705841433545,-154.14,0.00027552,2]
[312373117,1705841433555,-154.14,0.00027582,2]
[312373118,1705841433564,-154.14,0.00027612,2]
[312373119,1705841433577,-500.0,0.00027709,2]
[312373120,1705841433587,-244.79,0.00027776,2]
[312373121,1705841433596,-200.0,0.00027807,2]
[312373122,1705841433606,-244.79,0.00027852,2]
[312373123,1705841433615,-244.79,0.00027928,2]
[312373124,1705841433624,-250.0,0.00027992,2]
[312373125,1705841433634,-689.17349675,0.00028,2]
[312373126,1705841433643,-203.14380127,0.00028,2]
[312373127,1705841433652,-244.79,0.00028004,2]
[312373128,1705841433662,-244.79,0.0002808,2]
[312373129,1705841433671,-244.79,0.00028157,2]
[312373130,1705841433681,-1847.74262692,0.00028211,2]
[312373131,1705841433691,-244.79,0.00028233,2]
[312373132,1705841433701,-150.45,0.00028235,2]
[312373133,1705841433711,-244.79,0.00028309,2]
[312373134,1705841433720,-244.79,0.00028385,2]
[312373135,1705841433730,-244.79,0.00028461,2]
[312373136,1705841433740,-244.79,0.00028537,2]
[312373137,1705841433750,-244.79,0.00028614,2]
[312373138,1705841433760,-244.79,0.0002869,2]
[312373139,1705841433772,-173.70888881,0.00028707,2]
[312373140,1705841433782,-244.79,0.00028766,2]
[312373141,1705841433793,-1052.12,0.00028767,2]
[312373142,1705841433806,-3192.30886784,0.00028798,2]
[312373143,1705841433818,-286.21123975,0.00028805,2]
[312373144,1705841433828,-290.63,0.0002883,2]
[312373145,1705841433838,-161.53,0.00028833,2]
[312373146,1705841433848,-244.79,0.00028842,2]
[312373147,1705841433857,-161.53,0.00028905,2]
[312373148,1705841433867,-244.79,0.00028918,2]
[312373149,1705841433877,-161.53,0.00028977,2]
[312373150,1705841433887,-244.79,0.00028994,2]
[312373151,1705841433897,-4804.8908862,0.00029,14]
[312373152,1705841433907,-161.53,0.00029049,2]
[312373153,1705841433919,-244.79,0.00029071,2]
[312373154,1705841434148,-161.53,0.00029121,2]
[312373155,1705841434161,-244.79,0.00029147,2]
[312373156,1705841434171,-161.53,0.00029193,2]
[312373157,1705841434185,-244.79,0.00029223,2]
[312373158,1705841434194,-161.53,0.00029265,2]
[312373159,1705841434204,-161.53,0.00029337,2]
[312373160,1705841434213,-282.12154414,0.00029399,2]
[312373161,1705841434223,-193.39019381,0.00029399,2]
[312373162,1705841434232,-161.53,0.00029409,2]
[312373163,1705841434242,-171.29,0.00029494,2]
[312373164,1705841434252,-180.0,0.00029551,2]
[312373165,1705841434264,-871.00669761,0.00029692,2]
[312373166,1705841434273,-162.24662647,0.00029692,2]
[312373167,1705841434283,-1462.24391019,0.00029693,2]
[312373168,1705841434383,-425.76,0.00029693,2]
[312373169,1705841434406,-5489.05256479,0.00029693,2]
[312373170,1705841434416,-213.42642285,0.00029693,2]
[312373171,1705841434426,-155.0,0.00029694,2]
[312373172,1705841434435,-233.12709957,0.00029694,2]
[312373173,1705841434445,-276.30369528,0.00029694,2]
[312373174,1705841434454,-29045.96952161,0.00029694,2]
[312373175,1705841434474,-577.37079432,0.00029694,2]
[312373176,1705841434486,-1138.31996974,0.00029694,2]
[312373177,1705841434497,-314.47830538,0.00029694,2]
[312373178,1705841434509,-1312.90177721,0.00029694,2]
[312373179,1705841434520,-691.59727248,0.00029694,2]
[312373186,1705841438360,-56854.92663286,0.00029694,2]
[312373187,1705841438370,-242.64644289,0.00029694,2]
[312373188,1705841438381,-219.5012922,0.00029694,2]
[312373189,1705841438390,-294.20737805,0.00029694,2]
[312373190,1705841438401,-5957.53282957,0.00029694,2]
[312373191,1705841438411,-384.89695626,0.00029695,2]
[312373192,1705841438422,-542.84106609,0.00029695,2]
[312373193,1705841438432,-523.73846155,0.00029695,2]
[312373194,1705841438441,-383.86171178,0.00029695,2]
[312373195,1705841438451,-184.77981935,0.00029695,2]
[312373196,1705841438461,-155.93996978,0.00029695,2]